bitfinex/quotes_SOLUSD_20220129
["timestamp","ask_amount","ask_price","bid_price","bid_amount"]
[1643424717228,33.95962465,91.008,90.939,22.9889]
[1643424717630,33.95962465,91.008,90.949,6.0]
[1643424717827,33.95962465,91.008,90.95,0.25]
[1643424718229,0.25,91.007,90.95,0.25]
[1643424719027,6.0,90.998,90.94,0.25]
[1643424719430,16.497,91.0,90.94,0.25]
[1643424719728,16.497,91.0,90.939,22.7389]
[1643424719729,0.25,90.999,90.939,22.7389]
[1643424720531,16.497,91.0,90.939,22.7389]
[1643424720932,16.497,91.0,90.94,0.25]
[1643424721131,15.497,91.0,90.94,0.25]
[1643424721535,6.0,90.99,90.94,0.25]
[1643424721734,33.95962465,91.008,90.94,0.25]
[1643424721931,46.57033227,90.993,90.94,0.25]
[1643424722532,0.25,90.992,90.939,22.7389]
[1643424722932,16.499,90.99,90.939,22.7389]
[1643424723334,0.25,90.989,90.939,22.7389]
[1643424724131,0.25,90.989,90.94,0.25]
[1643424727338,0.25,90.989,90.939,22.7389]
[1643424727538,40.80093818,90.979,90.94,0.25]
[1643424727837,0.25,90.978,90.929,0.25]
[1643424728038,40.80093818,90.979,90.929,0.25]
[1643424728862,40.80093818,90.979,90.918,23.947]
[1643424729067,0.25,90.978,90.918,23.947]
[1643424729463,10.57,90.978,90.918,23.947]
[1643424730264,10.57,90.978,90.88,1.52066193]
[1643424730466,33.7473,90.978,90.892,24.7544]
[1643424730665,33.7473,90.978,90.901,6.0]
[1643424730867,33.7473,90.978,90.902,6.25]
[1643424731067,6.0,90.968,90.902,6.25]
[1643424731266,0.25,90.967,90.903,16.99027273]
[1643424731466,6.0,90.968,90.904,0.25]
[1643424731667,6.0,90.968,90.913,6.0]
[1643424731866,6.0,90.968,90.914,0.25]
[1643424732066,6.0,90.968,90.914,6.25]
[1643424737268,33.4973,90.978,90.914,6.25]
[1643424738570,0.25,90.977,90.914,6.25]
[1643424741974,33.4973,90.978,90.914,6.25]
[1643424742375,33.4973,90.978,90.915,24.5705]
[1643424742675,10.32,90.978,90.925,6.0]
[1643424742874,10.32,90.978,90.926,0.25]
[1643424743076,10.32,90.978,90.926,6.25]
[1643424743474,10.32,90.978,90.927,1.44661519]
[1643424743674,10.32,90.978,90.933,6.0]
[1643424743882,10.32,90.978,90.927,1.44661519]
[1643424743883,10.32,90.978,90.937,6.0]
[1643424744283,10.32,90.978,90.938,0.25]
[1643424745085,10.32,90.978,90.94,6.0]
[1643424745284,10.32,90.978,90.941,0.25]
[1643424745486,10.32,90.978,90.947,115.7]
[1643424745784,10.32,90.978,90.948,0.25]
[1643424745985,10.32,90.978,90.951,6.0]
[1643424746388,10.32,90.978,90.952,0.25]
[1643424747611,10.32,90.978,90.942,109.95]
[1643424747787,10.32,90.978,90.952,6.0]
[1643424748189,10.32,90.978,90.953,0.25]
[1643424748592,10.32,90.978,90.953,109.95]
[1643424749595,10.32,90.978,90.963,6.0]
[1643424749795,10.32,90.978,90.964,4.38291837]
[1643424750795,10.32,90.978,90.964,4.13291837]
[1643424751600,41.23316293,91.007,90.931,24.0111]
[1643424751798,41.23316293,91.007,90.941,6.0]
[1643424751997,41.23316293,91.007,90.931,24.0111]
[1643424752198,41.23316293,91.007,90.932,0.25]
[1643424752398,41.23316293,91.007,90.941,6.0]
[1643424752598,41.23316293,91.007,90.942,13.6499288]
[1643424752799,41.23316293,91.007,90.942,13.8999288]
[1643424753100,41.23316293,91.007,90.952,6.0]
[1643424753298,41.23316293,91.007,90.953,0.25]
[1643424753901,41.23316293,91.007,90.953,6.25]
[1643424754299,23.2694,91.026,90.953,0.25]
[1643424754502,23.2694,91.026,90.954,24.0843]
[1643424754700,0.25,91.025,90.954,24.0843]
[1643424754900,0.25,91.025,90.964,6.0]
[1643424755326,41.10533629,91.025,90.965,5.03695912]
[1643424756428,40.85533629,91.025,90.965,5.03695912]
[1643424757829,0.25,91.024,90.965,5.03695912]
[1643424758029,6.0,91.015,90.965,5.03695912]
[1643424758431,0.25,91.024,90.965,5.03695912]
[1643424759030,0.25,91.024,90.965,0.25]
[1643424759234,6.0,91.015,90.965,0.25]
[1643424759431,6.0,91.015,90.955,0.25]
[1643424759631,0.25,91.014,90.946,0.25]
[1643424759831,0.25,91.014,90.945,24.4452]
[1643424760032,0.25,91.014,90.946,17.79830688]
[1643424761033,16.497,91.01,90.946,17.79830688]
[1643424761232,42.21585454,91.009,90.946,17.79830688]
[1643424761433,42.46585454,91.009,90.946,17.79830688]
[1643424762234,42.46585454,91.009,90.947,0.25]
[1643424762532,42.21585454,91.009,90.947,0.25]
[1643424762931,0.25,91.008,90.947,0.25]
[1643424764340,0.25,91.008,90.947,24.1494]
[1643424769142,6.0,90.999,90.947,24.1494]
[1643424769542,22.9693,91.008,90.947,24.1494]
[1643424774770,0.25,91.008,90.948,14.55552022]
[1643424774971,1.49803901,91.017,90.948,14.55552022]
[1643424775170,1.49803901,91.017,90.949,0.25]
[1643424775372,1.49803901,91.018,90.949,0.25]
[1643424775570,1.49803901,91.019,90.949,0.25]
[1643424775771,44.47301033,91.018,90.949,0.25]
[1643424776171,0.25,91.017,90.949,0.25]
[1643424776570,1.49803901,91.02,90.949,0.25]
[1643424776770,1.49803901,91.025,90.949,0.25]
[1643424777173,16.494,91.02,90.949,0.25]
[1643424777370,6.0,91.015,90.949,0.25]
[1643424777571,46.42113723,91.014,90.949,0.25]
[1643424778174,16.496,91.01,90.948,0.25]
[1643424778774,0.25,91.009,90.948,0.25]
[1643424778975,16.496,91.01,90.948,13.863992]
[1643424779175,46.42113723,91.014,90.948,13.863992]
[1643424780175,0.25,91.013,90.948,13.863992]
[1643424780978,6.0,91.004,90.948,13.863992]
[1643424782586,46.42113723,91.014,90.948,13.863992]
[1643424782986,1.49803901,91.023,90.948,13.863992]
[1643424783187,1.49803901,91.023,90.958,6.0]
[1643424783387,0.25,91.022,90.959,23.2839]
[1643424783788,1.74803901,91.022,90.959,23.2839]
[1643424783987,45.91978097,91.021,90.959,23.2839]
[1643424784589,45.91978097,91.021,90.958,6.0]
[1643424784790,45.91978097,91.021,90.94,15.77]
[1643424784791,6.0,91.011,90.94,15.77]
[1643424784991,6.0,91.011,90.938,1.52066193]
[1643424784992,6.0,91.011,90.932,24.6304]
[1643424785588,6.0,91.011,90.933,14.67680848]
[1643424785790,6.0,91.011,90.934,0.25]
[1643424786088,6.0,91.008,90.943,6.0]
[1643424786288,39.40490772,91.007,90.944,23.5016]
[1643424786492,39.40490772,91.007,90.945,6.0]
[1643424786689,39.40490772,91.007,90.944,23.5016]
[1643424788491,16.494,91.02,90.945,109.7]
[1643424788890,16.494,91.02,90.946,0.25]
[1643424789292,1.49803901,91.024,90.946,0.25]
[1643424789493,39.06435548,91.023,90.946,0.25]
[1643424789692,39.06435548,91.023,90.955,6.0]
[1643424789892,39.06435548,91.023,90.957,3.76007944]
[1643424790292,39.06435548,91.023,90.958,0.25]
[1643424791092,39.06435548,91.023,90.957,3.76007944]
[1643424791393,0.25,91.022,90.957,3.76007944]
[1643424792394,0.25,91.022,90.958,0.25]
[1643424793595,6.0,91.013,90.958,0.25]
[1643424793794,0.25,91.022,90.958,0.25]
[1643424793996,6.0,91.013,90.958,0.25]
[1643424794595,39.06435548,91.023,90.958,0.25]
[1643424795599,0.25,91.022,90.958,0.25]
[1643424796598,39.06435548,91.023,90.958,0.25]
[1643424798799,0.25,91.022,90.958,0.25]
[1643424798999,39.06435548,91.023,90.958,0.25]
[1643424800208,0.25,91.022,90.958,0.25]
[1643424801007,6.0,91.013,90.958,0.25]
[1643424801409,0.25,91.012,90.958,0.25]
[1643424802410,0.25,91.012,90.951,0.25]
[1643424802611,39.06435548,91.023,90.951,0.25]
[1643424802612,1.49803901,91.018,90.951,0.25]
[1643424802811,0.25,91.012,90.951,0.25]
[1643424803213,1.49803901,91.018,90.951,16.85913138]
[1643424803413,16.494,91.02,90.952,109.7]
[1643424803612,22.8558,91.022,90.952,109.7]
[1643424803812,22.8558,91.022,90.953,0.25]
[1643424804414,1.49803901,91.019,90.953,0.25]
[1643424804614,1.49803901,91.02,90.953,0.25]
[1643424804815,41.21924177,91.008,90.953,0.25]
[1643424805415,0.25,91.007,90.953,0.25]
[1643424806517,41.21924177,91.008,90.953,0.25]
[1643424806719,0.25,91.007,90.933,1.52066193]
[1643424806918,6.0,90.998,90.934,0.25]
[1643424807317,0.25,90.997,90.934,0.25]
[1643424808136,0.25,90.997,90.933,0.25]
[1643424808834,0.25,90.999,90.933,0.25]
[1643424810642,6.0,90.99,90.933,0.25]
[1643424810837,0.25,90.989,90.933,0.25]
[1643424811237,38.81881715,90.989,90.933,0.25]
[1643424815542,6.0,90.979,90.933,0.25]
[1643424818959,1.49803901,91.011,90.933,0.25]
[1643424819145,1.49803901,91.013,90.933,0.25]
[1643424819347,6.0,91.001,90.933,0.25]
[1643424819644,6.0,90.991,90.933,0.25]
[1643424819845,42.20955779,90.99,90.933,0.25]
[1643424820046,6.0,90.98,90.933,0.25]
[1643424822151,16.496,91.01,90.933,0.25]
[1643424822351,0.25,91.009,90.933,0.25]
[1643424822954,0.25,91.009,90.933,109.95]
[1643424823156,1.49803901,91.018,90.933,109.95]
[1643424823353,24.2935,91.019,90.944,109.7]
[1643424823559,24.2935,91.019,90.946,109.7]
[1643424823955,24.2935,91.019,90.947,0.25]
[1643424824156,36.18930269,91.018,90.947,0.25]
[1643424824756,36.18930269,91.018,90.956,6.0]
[1643424825158,36.18930269,91.018,90.957,0.25]
[1643424825359,35.93930269,91.018,90.957,0.25]
[1643424825657,24.2935,91.019,90.957,23.3051]
[1643424826059,24.2935,91.019,90.967,6.0]
[1643424826258,24.2935,91.019,90.968,0.25]
[1643424826464,24.2935,91.019,90.968,13.55009377]
[1643424830266,0.25,91.018,90.968,13.55009377]
[1643424830768,24.2935,91.019,90.968,13.55009377]
[1643424831171,24.2935,91.019,90.978,6.0]
[1643424831367,24.2935,91.019,90.979,0.25]
[1643424832667,0.25,91.018,90.979,0.25]
[1643424833070,42.54150889,91.018,90.979,0.25]
[1643424834088,42.29150889,91.018,90.979,0.25]
[1643424834689,42.29150889,91.018,90.978,6.0]
[1643424834888,42.29150889,91.018,90.979,0.25]
[1643424835089,42.29150889,91.018,90.979,6.25]
[1643424835287,16.492,91.03,90.979,0.25]
[1643424835489,1.50452563,91.039,90.979,0.25]
[1643424835688,1.50452563,91.042,90.979,6.25]
[1643424835888,0.25,91.038,90.979,6.25]
[1643424836088,1.50452563,91.041,90.979,6.25]
[1643424836291,41.69076885,91.043,90.98,23.0752]
[1643424836490,40.18624322,91.043,90.98,23.0752]
[1643424836690,0.25,91.042,90.99,6.0]
[1643424836889,0.25,91.042,90.991,5.38679415]
[1643424837492,1.50452563,91.041,90.991,5.38679415]
[1643424837692,1.75452563,91.042,90.991,5.38679415]
[1643424838094,1.50452563,91.041,90.991,5.38679415]
[1643424838292,1.75452563,91.042,90.991,5.38679415]
[1643424838493,0.25,91.042,90.991,5.38679415]
[1643424839094,0.25,91.042,91.001,6.0]
[1643424839294,0.25,91.05,91.002,0.25]
[1643424839494,1.50452563,91.059,91.002,0.25]
[1643424839694,1.50452563,91.064,91.002,0.25]
[1643424839895,1.50452563,91.066,91.002,0.25]
[1643424840095,1.50452563,91.066,91.002,133.656]
[1643424840495,24.3671,91.068,91.013,13.30009377]
[1643424840896,0.25,91.067,91.023,6.0]
[1643424841296,1.50452563,91.073,91.024,0.25]
[1643424841499,1.50452563,91.082,91.024,0.25]
[1643424841696,0.00452563,91.084,91.024,0.25]
[1643424841896,113.7,91.168,91.03,15.77]
[1643424841897,22.6721,91.133,91.03,15.77]
[1643424842096,3.00905126,91.158,91.04,6.0]
[1643424842296,16.471,91.15,91.051,109.7]
[1643424842499,34.99002296,91.149,91.053,109.7]
[1643424842697,16.471,91.15,91.063,13.52943814]
[1643424842897,16.471,91.15,91.07,15.77]
[1643424843097,6.0,91.14,91.08,6.0]
[1643424843300,6.0,91.14,91.081,0.25]
[1643424843701,45.28998919,91.139,91.082,5.13226852]
[1643424843902,45.28998919,91.139,91.081,0.25]
[1643424843903,45.28998919,91.139,91.06,15.77]
[1643424844102,45.28998919,91.139,91.072,0.25]
[1643424844700,45.28998919,91.139,91.07,15.77]
[1643424844902,45.28998919,91.139,91.071,17.55096824]
[1643424845101,16.474,91.13,91.071,17.55096824]
[1643424845301,0.25,91.129,91.071,17.55096824]
[1643424846002,0.25,91.129,91.071,0.25]
[1643424850903,0.25,91.129,91.08,6.0]
[1643424851301,0.25,91.129,91.081,0.25]
[1643424851904,0.25,91.138,91.081,0.25]
[1643424854108,0.25,91.138,91.071,0.25]
[1643424857117,0.25,91.138,91.08,6.0]
[1643424857316,0.25,91.138,91.081,0.25]
[1643424859719,0.25,91.138,91.071,0.25]
[1643424864016,0.25,91.138,91.071,109.95]
[1643424865820,6.0,91.129,91.071,109.95]
[1643424866321,0.25,91.128,91.071,109.95]
[1643424867122,16.473,91.14,91.071,109.95]
[1643424867324,3.00905126,91.178,91.072,68.50338561]
[1643424867524,3.00905126,91.197,91.082,71.67]
[1643424867823,47.4294,91.214,91.091,65.67]
[1643424868022,47.4294,91.214,91.101,6.0]
[1643424868222,36.67795934,91.213,91.11,15.77]
[1643424868422,45.28080162,91.199,91.112,15.66104931]
[1643424868623,3.01816141,91.198,91.114,109.7]
[1643424868822,3.01816141,91.198,91.115,0.25]
[1643424869124,45.28080162,91.199,91.124,6.0]
[1643424869324,16.458,91.22,91.13,15.77]
[1643424869526,16.458,91.22,91.132,109.7]
[1643424869924,16.458,91.22,91.133,0.25]
[1643424870126,16.458,91.22,91.133,3.08338561]
[1643424870324,33.60635085,91.219,91.134,5.83404296]
[1643424870525,33.60635085,91.219,91.135,109.7]
[1643424870725,33.60635085,91.219,91.15,15.77]
[1643424870927,33.60635085,91.219,91.151,15.32710705]
[1643424871127,0.25,91.218,91.151,15.57710705]
[1643424871329,33.60635085,91.219,91.151,15.57710705]
[1643424872731,0.25,91.218,91.151,15.57710705]
[1643424874133,33.35635085,91.219,91.151,15.57710705]
[1643424874535,6.0,91.209,91.151,15.57710705]
[1643424875352,0.25,91.208,91.151,15.57710705]
[1643424881366,6.0,91.209,91.151,15.57710705]
[1643424881564,33.35635085,91.219,91.152,109.7]
[1643424881766,33.35635085,91.219,91.153,0.25]
[1643424884373,0.25,91.218,91.153,0.25]
[1643424884973,33.35635085,91.219,91.153,0.25]
[1643424885173,0.25,91.218,91.153,0.25]
[1643424885372,33.35635085,91.219,91.153,0.25]
[1643424885773,0.25,91.218,91.15,15.77]
[1643424886072,0.25,91.218,91.088,16.3778]
[1643424886073,6.0,91.209,91.088,16.3778]
[1643424886273,0.25,91.208,91.1,15.77]
[1643424886572,3.20669142,91.208,91.11,15.77]
[1643424886775,3.20669142,91.208,91.114,37.89910417]
[1643424887172,3.20669142,91.208,91.115,0.25]
[1643424887973,16.462,91.2,91.115,0.25]
[1643424888176,41.67524067,91.199,91.115,0.25]
[1643424888380,41.92524067,91.199,91.115,0.25]
[1643424889177,41.92524067,91.199,91.124,6.0]
[1643424889378,41.92524067,91.199,91.125,0.25]
[1643424890578,6.0,91.189,91.125,0.25]
[1643424890782,0.25,91.188,91.124,6.0]
[1643424891179,0.25,91.188,91.125,0.25]
[1643424892379,0.25,91.188,91.121,0.25]
[1643424893385,0.25,91.197,91.121,0.25]
[1643424894606,0.25,91.197,91.13,6.0]
[1643424894805,16.463,91.19,91.131,0.25]
[1643424895408,41.67524067,91.199,91.131,0.25]
[1643424895808,0.25,91.198,91.131,5.82370249]
[1643424896810,6.0,91.189,91.131,5.82370249]
[1643424897009,6.0,91.189,91.131,0.25]
[1643424897210,0.25,91.188,91.141,6.0]
[1643424897410,0.25,91.188,91.142,0.25]
[1643424897610,0.25,91.188,91.131,0.25]
[1643424898012,0.25,91.188,91.14,6.0]
[1643424898411,0.25,91.198,91.141,0.25]
[1643424899011,0.25,91.198,91.141,6.25]
[1643424899412,0.25,91.198,91.141,0.25]
[1643424899812,0.25,91.198,91.132,0.25]
[1643424900517,0.25,91.198,91.141,6.0]
[1643424900913,0.25,91.198,91.142,0.25]
[1643424902115,0.25,91.198,91.151,5.62407629]
[1643424906221,0.25,91.198,91.141,0.25]
[1643424907319,0.25,91.198,91.141,17.8039956]
[1643424911528,0.25,91.199,91.141,17.8039956]
[1643424911728,54.869,91.23,91.141,17.8039956]
[1643424911729,16.458,91.22,91.142,109.7]
[1643424911927,16.458,91.22,91.142,132.5697]
[1643424912128,16.458,91.22,91.152,6.0]
[1643424912328,41.65613952,91.219,91.153,0.25]
[1643424912529,41.65613952,91.219,91.153,24.6558]
[1643424913332,0.25,91.218,91.153,24.6558]
[1643424913945,0.25,91.218,91.164,1.35771106]
[1643424914331,0.25,91.218,91.165,0.25]
[1643424915731,0.25,91.218,91.164,1.35771106]
[1643424916133,0.25,91.218,91.153,24.4058]
[1643424916336,6.0,91.209,91.153,24.4058]
[1643424916734,0.25,91.208,91.153,24.4058]
[1643424917335,0.25,91.208,91.154,15.43011226]
[1643424921061,0.25,91.208,91.164,6.0]
[1643424922363,0.25,91.208,91.154,15.43011226]
[1643424925369,41.65613952,91.219,91.155,0.25]
[1643424925569,0.25,91.208,91.155,0.25]
[1643424926370,0.25,91.208,91.16,15.77]
[1643424926871,0.25,91.218,91.161,0.25]
[1643424929478,0.25,91.218,91.161,109.95]
[1643424932082,22.6237,91.239,91.161,109.95]
[1643424932281,0.25,91.238,91.161,109.95]
[1643424933081,41.54099765,91.238,91.161,109.95]
[1643424933483,41.54099765,91.238,91.172,109.7]
[1643424933685,41.54099765,91.238,91.174,109.7]
[1643424933885,41.54099765,91.238,91.175,0.25]
[1643424934088,41.54099765,91.238,91.183,6.0]
[1643424934282,41.54099765,91.238,91.184,0.25]
[1643424936484,41.54099765,91.238,91.174,0.25]
[1643424937687,41.54099765,91.238,91.183,6.0]
[1643424937987,41.54099765,91.238,91.184,0.25]
[1643424938185,41.29099765,91.238,91.183,6.0]
[1643424938586,41.29099765,91.238,91.184,0.25]
[1643424939591,0.25,91.237,91.184,0.25]
[1643424940989,0.25,91.237,91.183,6.0]
[1643424941189,0.25,91.237,91.184,0.25]
[1643424943595,0.25,91.237,91.174,0.25]
[1643424944597,0.25,91.237,91.183,6.0]
[1643424944799,0.25,91.237,91.184,0.25]
[1643424945997,0.25,91.237,91.184,23.3419]
[1643424947221,0.25,91.237,91.184,23.0919]
[1643424948225,41.29099765,91.238,91.185,0.25]
[1643424948424,0.04351504,91.25,91.195,109.7]
[1643424948624,0.04351504,91.25,91.205,6.0]
[1643424948829,0.04351504,91.25,91.206,0.25]
[1643424949127,0.04351504,91.25,91.21,6.0]
[1643424949324,0.04351504,91.25,91.211,15.68011226]
[1643424949525,0.04351504,91.25,91.212,23.2015]
[1643424949928,0.04351504,91.25,91.213,0.25]
[1643424950527,0.04351504,91.25,91.213,109.95]
[1643424951126,0.04351504,91.25,91.213,0.25]
[1643424951625,0.04351504,91.25,91.222,6.0]
[1643424951826,0.04351504,91.25,91.223,23.4023]
[1643424958935,0.04351504,91.25,91.223,133.1023]
[1643424961037,0.04351504,91.25,91.234,109.7]
[1643424961236,0.04351504,91.25,91.244,6.0]
[1643424961436,0.04351504,91.25,91.235,23.7822]
[1643424961835,0.04351504,91.25,91.236,3.4815944]
[1643424962235,0.04351504,91.25,91.237,0.25]
[1643424965139,0.04351504,91.25,91.246,6.0]
[1643424965345,4.0,91.3,91.247,0.25]
[1643424965639,44.17212019,91.299,91.247,0.25]
[1643424965840,44.42212019,91.299,91.247,0.25]
[1643424966039,44.17212019,91.299,91.247,0.25]
[1643424966241,4.0,91.3,91.247,0.25]
[1643424966640,4.0,91.3,91.237,0.25]
[1643424967243,33.15752402,91.299,91.24,15.77]
[1643424967442,4.0,91.3,91.24,15.77]
[1643424967443,4.0,91.3,91.241,109.95]
[1643424967643,4.0,91.3,91.251,6.0]
[1643424967845,4.0,91.3,91.252,109.95]
[1643424968042,4.0,91.3,91.262,6.0]
[1643424968442,4.0,91.3,91.263,15.68011226]
[1643424968642,1.50293832,91.315,91.264,68.0]
[1643424968844,15.06457752,91.363,91.275,65.67]
[1643424969047,12.05552626,91.363,91.291,65.67]
[1643424969247,3.00905126,91.427,91.331,68.0]
[1643424969446,81.79997475,91.429,91.34,15.77]
[1643424969646,32.79955967,91.428,91.342,6.0]
[1643424969845,32.79955967,91.428,91.35,6.0]
[1643424970046,32.79955967,91.428,91.351,21.28065863]
[1643424970247,32.79955967,91.428,91.351,6.0]
[1643424970449,32.79955967,91.428,91.35,15.77]
[1643424970647,6.0,91.418,91.343,0.25]
[1643424970949,16.426,91.4,91.32,15.77]
[1643424971149,16.426,91.4,91.331,0.25]
[1643424971351,45.89853611,91.399,91.331,15.07528954]
[1643424971550,45.89853611,91.399,91.341,6.0]
[1643424971751,45.89853611,91.399,91.331,15.07528954]
[1643424971952,0.25,91.398,91.331,0.25]
[1643424972350,16.427,91.39,91.331,0.25]
[1643424972558,6.0,91.389,91.331,0.25]
[1643424972761,6.25,91.389,91.331,0.25]
[1643424972958,0.25,91.389,91.331,0.25]
[1643424974357,36.31777971,91.379,91.331,0.25]
[1643424974758,0.25,91.378,91.331,0.25]
[1643424975562,36.31777971,91.379,91.321,24.9651]
[1643424975759,0.25,91.378,91.321,24.9651]
[1643424976360,0.25,91.378,91.32,15.77]
[1643424976560,6.0,91.369,91.322,13.21336179]
[1643424976760,0.25,91.378,91.322,13.21336179]
[1643424976961,0.25,91.368,91.322,13.21336179]
[1643424977259,0.25,91.368,91.32,15.77]
[1643424977460,36.31777971,91.379,91.32,15.77]
[1643424977661,0.25,91.378,91.32,15.77]
[1643424979262,36.31777971,91.379,91.32,15.77]
[1643424979864,36.31777971,91.379,91.33,6.0]
[1643424980281,36.31777971,91.379,91.331,0.25]
[1643424980487,0.25,91.378,91.331,0.25]
[1643424980688,0.25,91.378,91.33,6.0]
[1643424980883,0.25,91.378,91.331,0.25]
[1643424981288,36.31777971,91.379,91.331,0.25]
[1643424981886,6.0,91.369,91.32,15.77]
[1643424982091,6.0,91.369,91.321,0.25]
[1643424982892,6.0,91.369,91.301,14.32734731]
[1643424983087,6.0,91.369,91.301,14.57734731]
[1643424983488,0.25,91.368,91.301,14.57734731]
[1643424984488,6.0,91.369,91.301,14.57734731]
[1643424985489,23.7245,91.378,91.301,14.57734731]
[1643424985892,0.25,91.377,91.301,14.57734731]
[1643424986591,6.0,91.368,91.301,14.57734731]
[1643424986791,0.25,91.367,91.301,14.57734731]
[1643424988496,0.25,91.367,91.301,0.25]
[1643424989394,0.25,91.369,91.301,0.25]
[1643424990599,0.25,91.369,91.3,15.77]
[1643424990800,16.433,91.36,91.267,2.82022537]
[1643424991007,24.6853,91.359,91.24,15.77]
[1643424991206,27.89199142,91.359,91.22,15.77]
[1643424991425,27.89199142,91.359,91.24,14.58277586]
[1643424991426,41.60825099,91.358,91.24,14.58277586]
[1643424991600,76.52386651,91.358,91.24,14.58277586]
[1643424991901,20.40103211,91.357,91.24,14.58277586]
[1643424992102,35.16561552,91.357,91.24,14.58277586]
[1643424992302,20.15103211,91.356,91.24,14.58277586]
[1643424992502,35.9084562,91.356,91.24,14.58277586]
[1643424992707,20.40103211,91.355,91.24,14.58277586]
[1643424992903,35.16561552,91.355,91.24,14.58277586]
[1643424993102,44.01137354,91.329,91.24,14.58277586]
[1643424993303,0.25,91.328,91.24,14.58277586]
[1643424993508,3.20669142,91.328,91.24,14.58277586]
[1643424993803,2.95669142,91.327,91.24,14.58277586]
[1643424994212,0.25,91.326,91.24,14.58277586]
[1643424994603,2.95669142,91.325,91.24,14.58277586]
[1643424994803,0.25,91.324,91.24,14.58277586]
[1643424995003,16.445,91.31,91.24,14.58277586]
[1643424995204,34.31187943,91.309,91.241,0.25]
[1643424995506,34.56187943,91.309,91.241,0.25]
[1643424995903,24.2369,91.308,91.241,0.25]
[1643424996106,0.25,91.307,91.214,0.25]
[1643424996306,16.444,91.3,91.214,0.25]
[1643424996704,0.25,91.307,91.214,15.67174658]
[1643424996705,0.25,91.299,91.214,15.67174658]
[1643424996904,44.50092601,91.289,91.214,15.67174658]
[1643424997105,6.0,91.279,91.214,15.67174658]
[1643424997306,0.25,91.278,91.214,15.67174658]
[1643424999030,0.25,91.278,91.214,0.25]
[1643424999234,16.449,91.27,91.214,0.25]
[1643424999630,0.25,91.269,91.214,0.25]
[1643425000031,46.86134311,91.269,91.214,15.86511933]
[1643425000632,46.86134311,91.269,91.17,16.446]
[1643425000832,16.45,91.26,91.19,15.77]
[1643425001033,16.45,91.26,91.171,46.2605]
[1643425001241,46.86134311,91.269,91.171,46.2605]
[1643425001242,0.25,91.259,91.171,46.2605]
[1643425001635,0.25,91.259,91.172,15.00534393]
[1643425002034,40.02877812,91.249,91.172,15.00534393]
[1643425002436,0.25,91.248,91.172,15.00534393]
[1643425002638,6.0,91.239,91.182,6.0]
[1643425002837,0.25,91.238,91.183,0.25]
[1643425003042,0.25,91.238,91.16,15.77]
[1643425003241,0.25,91.238,91.139,46.2927]
[1643425003440,3.20669142,91.238,91.139,46.2927]
[1643425004047,24.4735,91.237,91.14,16.57755295]
[1643425004439,0.25,91.236,91.141,0.25]
[1643425004639,0.25,91.236,91.141,109.95]